Cogmind - Beta 16 --- EXPLORER MODE // 2026.01.07 @ 12:25:28 Player: K.K.Y. Result: Destroyed by C9-MU2(R) with Subdweller Laser Performance ------------- Evolutions (0) 0 Regions Visited (3) 600 Robots Destroyed (46) 230 Value Destroyed (1177) 1177 Prototype IDs (12) 240 Alien Tech Used (0) 0 Bonus (-101) -101 TOTAL SCORE: 2146 Bonus ------- Friendly Fire -101 Cogmind --------- Core Integrity 0/250 Matter 300/300 Energy 160/160 System Corruption 0% Temperature Cool (6) Movement Walking (130) Location -10/Subcaves Parts ------- > --- POWER (1) -------- Light Nuclear Core > --- PROPULSION (2) --- Cargo Legs > --- UTILITY (3+1) ---- High-capacity Storage Unit > --- WEAPON (2) ------- Makeshift Axe > --- INVENTORY (20) --- Ion Engine Makeshift Power Source Makeshift Power Source Light Treads Light Treads Light Treads Light Treads Spiked Treads Spiked Treads Large Storage Unit Humpback Machine Analyzer Riot Gun Beam Rifle Particle Gun Barrage Gun Heavy Battle Rifle Mining Laser Multitool Peak State ------------ > --- POWER ------------ Light Nuclear Core > --- PROPULSION ------- Cargo Legs > --- UTILITY ---------- High-capacity Storage Unit Light Armor Plating > --- WEAPON ----------- Makeshift Axe Makeshift Sword > --- INVENTORY -------- Ion Engine Makeshift Power Source Makeshift Power Source Light Treads Light Treads Light Treads Light Treads Spiked Treads Spiked Treads Large Storage Unit Humpback Machine Analyzer Riot Gun Beam Rifle Particle Gun Barrage Gun Heavy Battle Rifle Mining Laser Multitool [Rating: 33] Favorites ----------- Power Ion Engine Engine Ion Engine Power Core Light Nuclear Core Propulsion Light Treads Treads Light Treads Leg Cargo Legs Utility Light Armor Plating Device Sensor Array Storage Large Storage Unit Processor Targeting Computer Protection Light Armor Plating Weapon Makeshift Axe Energy Gun Particle Gun Ballistic Gun Assault Rifle Ballistic Cannon Battle Cannon Slashing Weapon Makeshift Axe Build | -11 -10 -10 -10 ------- Run | Yrd Mat Min Sub Slots Evolved 1 | . 1 . . Power . | . . . . Propulsion . | . . . . Utility 1 | . 1 . . Weapon . | . . . . Parts Attached 23 | 7 3 2 11 Power 5 | 1 1 . 3 Engine 4 | 1 1 . 2 Core 1 | . . . 1 Reactor . | . . . . Propulsion 3 | 2 . . 1 Treads 2 | 2 . . . Leg 1 | . . . 1 Wheel . | . . . . Hover . | . . . . Flight . | . . . . Utility 8 | 2 2 . 4 Device 2 | . . . 2 Storage 3 | 1 1 . 1 Processor 1 | 1 . . . Hackware . | . . . . Protection 2 | . 1 . 1 Artifact . | . . . . Weapon 7 | 2 . 2 3 Energy Gun 3 | 1 . 2 . Energy Cannon . | . . . . Ballistic Gun 1 | 1 . . . Ballistic Cannon 1 | . . . 1 Launcher . | . . . . Special Weapon . | . . . . Impact Weapon . | . . . . Slashing Weapon 2 | . . . 2 Piercing Weapon . | . . . . Special Melee Weapon . | . . . . Unidentified Prototypes . | . . . . Parts Lost 10 | . . . 10 Power 1 | . . . 1 Propulsion 2 | . . . 2 Utility 4 | . . . 4 Weapon 3 | . . . 3 Highest Loss Streak 3 | . . . 3 To Critical Strikes . | . . . . Average Backups 13 | 1 5 11 16 Power 1 | . . 1 2 Propulsion 4 | . 1 3 5 Utility 2 | . 1 3 3 Weapon 4 | . 2 2 4 Tool/Special . | . . . . Unused Backups 25 | . 1 2 22 Power 4 | . . . 4 Propulsion 8 | . . . 8 Utility 2 | . . . 2 Weapon 9 | . 1 2 6 Tool/Special 2 | . . . 2 Average Slot Usage (%) 80 | . 99 100 68 Engine 7 | . 12 12 4 Core 2 | . . . 4 Treads 12 | . 25 25 5 Leg 3 | . . . 6 Device 1 | . . . 2 Storage 11 | . 12 12 11 Processor 7 | . 12 12 5 Protection 8 | . 11 12 6 Energy Gun 8 | . 12 24 2 Ballistic Gun 2 | . 12 . . Ballistic Cannon 3 | . . . 5 Slashing Weapon 9 | . . . 14 Peak Build Rating 33 | 7 9 11 33 Average Rating 17 | 5 8 10 22 On Entrance 6 | . 7 9 11 Avg Prop Armor Cover (%) . | . . . . Naked Turns . | . . . . Heaviest Build 53 | 17 32 34 53 Greatest Support 55 | 40 40 40 55 Greatest Overweight (x) 9 | . . . 9 Average Overweight (x) . | . . . . Largest Inventory Capacity 20 | 10 15 15 20 Average Capacity 16 | 8 12 15 17 Most Carried 20 | 5 11 14 20 Average Carried 13 | 1 5 11 17 Final Capacity 20 | 10 15 15 20 Final Carried 20 | 1 10 14 20 Class Distribution -------------------- 100% | Hacker-Mutant Dominant Class ---------------- Hacker-Mutant | -10/Materials Hacker-Mutant | -10/Mines Hacker-Mutant | -10/Subcaves Resources | -11 -10 -10 -10 ----------- Run | Yrd Mat Min Sub Matter Collected 756 | 282 168 101 205 Remotely . | . . . . Salvage Created 1686 | 100 343 533 710 Parts 106 | 6 30 22 48 Haulers Intercepted 1 | . 1 . . Recyclers Shooed 2 | . 1 1 . Parts Field Recycled . | . . . . Retrieved Matter . | . . . . Parts Self-Destructed . | . . . . Prevented . | . . . . Parts Restored . | . . . . Kills | -11 -10 -10 -10 ------- Run | Yrd Mat Min Sub Combat Hostiles Destroyed 31 | . 8 6 17 Melee 14 | . . . 14 Guns 14 | . 8 6 . Cannons 3 | . . . 3 Classes Destroyed 11 | 2 5 1 3 Builder 4 | . 4 . . Tunneler 2 | 1 . 1 . Hauler 1 | . 1 . . Recycler 4 | 1 . 3 . Turret 2 | . . . 2 Watcher 2 | . 2 . . Swarmer 8 | . 6 . 2 Grunt 7 | . 2 4 1 Sentry 3 | . . 2 1 Artisan 2 | . . . 2 Subdweller 13 | . . . 13 Best Kill Streak 3 | 2 3 2 3 Combat Bots Only 3 | . 2 2 3 Max Kills in Single Turn 1 | 1 1 1 1 Gunslinging . | . . . . Exploded . | . . . . Melee 1 | . . . 1 Uniques/NPCs Destroyed . | . . . . Combat | -11 -10 -10 -10 -------- Run | Yrd Mat Min Sub Hostile Shots Fired 241 | . 52 23 166 Missed 75 | . 13 5 57 Hits 166 | . 39 18 109 Projectile 166 | . 39 18 109 Critical Strikes 5 | . . 1 4 Damage Taken 1377 | . 231 158 988 Core 251 | . 29 11 211 Absorbed by Shields . | . . . . Ignored by Resistances 816 | . 157 95 564 Core Remaining (%) 100 | 100 . . . Volleys Fired 86 | 4 46 19 17 Largest 2 | 2 2 2 1 Hottest 130 | 70 70 130 33 Shots Fired 149 | 8 86 38 17 Gun 132 | 8 86 38 . Cannon 17 | . . . 17 Launcher . | . . . . Special . | . . . . Kinetic 72 | 4 46 5 17 Thermal 77 | 4 40 33 . Explosive . | . . . . Electromagnetic . | . . . . Robot Hit Streak 26 | 8 26 22 14 Robot Miss Streak 1 | . 1 1 1 Penetration Max . | . . . . Secondary Targets 1 | . . 1 . Max Gunslinging Chain 1 | . . 1 . Shots Hit Robots 178 | 8 70 29 71 Core Hits 62 | 3 20 18 21 Critical Kills . | . . . . Critical Parts Destroyed 1 | . . 1 . Critical Strikes 7 | . 4 3 . Burn 6 | . 4 2 . Destroy 1 | . . 1 . Melee Attacks 264 | . . . 264 Impact . | . . . . Slashing 264 | . . . 264 Piercing . | . . . . Sneak Attacks 3 | . . . 3 Combat Hostiles . | . . . . Follow-up Attacks 6 | . . . 6 Damage Inflicted 3781 | 98 877 452 2354 Guns 1427 | 98 877 452 . Cannons 318 | . . . 318 Explosions . | . . . . Melee 2036 | . . . 2036 Ramming . | . . . . Kinetic 815 | 48 403 46 318 Thermal 930 | 50 474 406 . Explosive . | . . . . Electromagnetic . | . . . . Impact . | . . . . Slashing 2036 | . . . 2036 Piercing . | . . . . Highest Corruption . | . . . . Average Corruption . | . . . . Corruption Purged . | . . . . Corruption Blocked . | . . . . Overload Shots . | . . . . Overflow Damage 158 | . . . 158 Projectiles 10 | . . . 10 Explosions . | . . . . Melee 148 | . . . 148 Knockbacks . | . . . . Impact . | . . . . Kinetic . | . . . . Secondary . | . . . . Self-Inflicted Damage . | . . . . Shots . | . . . . Rammed . | . . . . Targets Rammed . | . . . . Kicked . | . . . . Crushed . | . . . . Highest Temperature 357 | 18 243 357 7 Average Temperature 81 | 10 66 108 5 Received Heat Transfer 657 | . 105 132 420 Effects 4 | . 1 3 . Interference 3 | . 1 2 . Matter Decay 1 | . . 1 . Siege Activations . | . . . . Martial Activations . | . . . . Shielding Activations . | . . . . Robots Disrupted . | . . . . Combat Hostiles . | . . . . Robots Corrupted . | . . . . Combat Hostiles . | . . . . Parts Fried . | . . . . Impact Corruptions . | . . . . Robots Melted . | . . . . Combat Hostiles . | . . . . Parts Melted 5 | . 2 3 . Heat Transferred 2997 | 148 1702 1147 . Parts Sabotaged . | . . . . Parts Stolen . | . . . . Parts Stripped . | . . . . Power Chain Reactions . | . . . . Alert | -11 -10 -10 -10 ------- Run | Yrd Mat Min Sub Maximum Alert Level . | . . . . Low Security (%) 100 | 100 100 100 . Level 1 . | . . . . Level 2 . | . . . . Level 3 . | . . . . Level 4 . | . . . . Level 5 . | . . . . High Security . | . . . . Max Security . | . . . . Peak Influence 50 | 5 41 50 . Initial . | . . . . Average 3 | 1 4 2 . Influence Increases 636 | 10 276 160 190 Destroy 0b10 Robot/C 400 | . 160 120 120 Destroy 0b10 Robot/NC 65 | 10 35 20 . Destroy Leader 76 | . 46 20 10 Successful Hack 3 | . 3 . . Destroy Structure 2 | . 2 . . Partial Spotted 15 | . 15 . . Lose Combat Pursuer 75 | . 15 . 60 Influence Decreases 636 | 10 276 160 190 Time Decay 606 | 10 276 160 160 Lost Part 30 | . . . 30 Squads Dispatched . | . . . . Investigation . | . . . . Extermination . | . . . . Reinforcement . | . . . . Assault . | . . . . Garrison . | . . . . Intercept . | . . . . Searches Triggered . | . . . . Construction Impeded . | . . . . Haulers Reinforced . | . . . . Active Scanning Responses . | . . . . Cargo Convoy Interrupts . | . . . . Stealth | -11 -10 -10 -10 --------- Run | Yrd Mat Min Sub Distress Signals 1 | . 1 . . Communications Jammed . | . . . . Distress Signals . | . . . . Times Spotted 45 | . 13 6 26 Peak Tracking Total 5 | . 3 2 5 Tactical Retreats 2 | . 1 . 1 Traps | -11 -10 -10 -10 ------- Run | Yrd Mat Min Sub Traps Triggered 4 | . . . 4 Indirectly . | . . . . Trap Hack Attempts . | . . . . Triggered . | . . . . Disarmed . | . . . . Reprogrammed . | . . . . Reused . | . . . . Traps Extracted . | . . . . Installed . | . . . . Triggered . | . . . . Machines | -11 -10 -10 -10 ---------- Run | Yrd Mat Min Sub Machines Disabled 1 | . . . 1 Max in Single Turn 1 | . . . 1 Machines Repaired . | . . . . Machines Dismantled . | . . . . Machines Sabotaged . | . . . . Overloaded Fab Kills . | . . . . Hacking | -11 -10 -10 -10 --------- Run | Yrd Mat Min Sub Machines Accessed 9 | . 7 . 2 Terminals 7 | . 7 . . Fabricators . | . . . . Repair Stations . | . . . . Recycling Units . | . . . . Scanalyzers . | . . . . Garrison Access . | . . . . Total Hacks 17 | . 11 . 6 Successful 14 | . 8 . 6 Failed 3 | . 3 . . Catastrophic . | . . . . Database Lockouts . | . . . . Manual 11 | . 11 . . Terminals 11 | . 11 . . Fabricators . | . . . . Repair Stations . | . . . . Recycling Units . | . . . . Scanalyzers . | . . . . Garrison Access . | . . . . Terminal Hacks 6 | . . . 6 Record 5 | . . . 5 Proto ID Catalog 1 | . . . 1 Fabricator Hacks . | . . . . Repair Station Hacks . | . . . . Recycling Unit Hacks . | . . . . Scanalyzer . | . . . . Garrison Access Hacks . | . . . . Unauthorized Hacks 7 | . 7 . . Terminals 7 | . 7 . . Botnet 7 | . 7 . . Fabricators . | . . . . Repair Stations . | . . . . Recycling Units . | . . . . Scanalyzers . | . . . . Garrison Access . | . . . . Data Cores Recovered . | . . . . Used . | . . . . Hacking Detections 4 | . 4 . . Full Trace Events . | . . . . Feedback Events . | . . . . Feedback Blocked . | . . . . Robot Schematics Acquired . | . . . . Robots Built . | . . . . Authchips . | . . . . Time . | . . . . Total Robot Build Rating . | . . . . Part Schematics Acquired . | . . . . Parts Built . | . . . . Authchips . | . . . . Time . | . . . . Total Part Build Rating . | . . . . Part Studies Acquired . | . . . . Parts Repaired . | . . . . Time . | . . . . Parts Recycled . | . . . . Recycled Matter . | . . . . Retrieved Matter . | . . . . Retrieved Components . | . . . . Parts Scanalyzed . | . . . . Part Schematics Acquired . | . . . . Parts Damaged . | . . . . Bothacking | -11 -10 -10 -10 ------------ Run | Yrd Mat Min Sub Used RIF Installer . | . . . . Robots Hacked . | . . . . Non-combat . | . . . . Combat . | . . . . Robot Hacks Applied . | . . . . Relay Couplers Released . | . . . . Fabnet Peak Effective % . | . . . . Robots Rewired . | . . . . Allies Hacked . | . . . . Hacks Repelled . | . . . . Allies | -11 -10 -10 -10 -------- Run | Yrd Mat Min Sub Total Allies . | . . . . Largest Group . | . . . . Highest-Rated Group . | . . . . Highest-Rated Ally . | . . . . Total Orders . | . . . . Ally Attacks . | . . . . Total Damage . | . . . . Kills . | . . . . Allies Corrupted . | . . . . Allies Melted . | . . . . Intel | -11 -10 -10 -10 ------- Run | Yrd Mat Min Sub Active Infowar (turns) 697 | . . . 697 Sensors 697 | . . . 697 Structural 413 | . . . 413 Robot Analysis Total . | . . . . Derelict Logs Recovered 3 | . . 1 2 Drone Launches . | . . . . Drone Recoveries . | . . . . Exploration | -11 -10 -10 -10 ------------- Run | Yrd Mat Min Sub Turns Passed 6582 | 89 1239 1225 4029 Spaces Moved 3372 | 56 667 667 1982 Core 181 | 24 . . 157 Treads 1799 | 32 667 667 433 Legs 1392 | . . . 1392 Wheels . | . . . . Hover . | . . . . Flight . | . . . . Fastest Speed 50 | 50 160 160 130 Average Speed 164 | 112 160 160 168 Slowest Speed 500 | 160 160 160 500 Overloaded Moves . | . . . . Propulsion Burnouts . | . . . . Robots Hopped . | . . . . Potential Cave-ins . | . . . . Cave-ins Triggered . | . . . . Exploration Rate (%) 69 | 4 98 99 77 Regions Visited 3 Branch Regions 2 Pre-discovered Areas 2 | . . 1 1 Known Exits Taken 3 | 1 1 1 . Unknown Exits Taken . | . . . . Scrap Searched 15 | . . 3 12 Spaces Dug 84 | . . . 84 Terrain Destroyed 84 | . . . 84 Melee 84 | . . . 84 Projectile . | . . . . AOE . | . . . . Terrain Rammed . | . . . . Walls Destroyed . | . . . . Machines Disabled . | . . . . Actions | -11 -10 -10 -10 --------- Run | Yrd Mat Min Sub Total 4030 | 73 753 788 2416 Wait 245 | . 22 89 134 Move 3369 | 55 666 666 1982 Hop . | . . . . Pick Up 43 | 7 13 8 15 Fast Attach 3 | 1 . . 2 Attach 14 | 6 1 . 7 Detach 2 | . . . 2 Swap 8 | . 2 2 4 Drop 15 | . 3 4 8 Fire 86 | 4 46 19 17 Melee 245 | . . . 245 Ram . | . . . . Kick . | . . . . Crush . | . . . . Escape Stasis . | . . . . Rewire . | . . . . Trap . | . . . . Miscellaneous . | . . . . Route ------- -11/Scrapyard -10/Materials (discovered 5 exits: *Mat x3 / *Min / *Sub) -10/Mines (discovered 3 exits: *Mat x2 / *Sub) -10/Subcaves (discovered 3 exits: *Mat x2 / *Rec) History --------- Turn | Location | Event 8 | -11/Scrapyard | Identified exit to Materials 8 | -11/Scrapyard | Discovered exit to Materials (range 16) 90 | -11/Scrapyard | Entered Materials 90 | -10/Materials | Evolved 1 slot: Utility x1 236 | -10/Materials | Identified exit to Mines 236 | -10/Materials | Discovered exit to Mines (range 13) 301 | -10/Materials | Build established: Hacker-Mutant 381 | -10/Materials | Identified exit to Materials 381 | -10/Materials | Discovered exit to Materials (range 15) 507 | -10/Materials | Identified exit to Subcaves 507 | -10/Materials | Discovered exit to Subcaves (range 13) 790 | -10/Materials | Derelicts attacked the area 912 | -10/Materials | Discovered exit to Materials (range 7) 1152 | -10/Materials | Discovered exit to Materials (range 10) 1329 | -10/Materials | Entered Mines 1365 | -10/Mines | Learned Materials terminal intel 1591 | -10/Mines | Learned location of Storage (-9) 1638 | -10/Mines | Discovered exit to Subcaves (range 10) 1712 | -10/Mines | Discovered exit to Materials (range 13) 2174 | -10/Mines | Discovered exit to Materials (range 15) 2554 | -10/Mines | Entered Subcaves 2555 | -10/Subcaves | Approached by a straggling Scientist 2636 | -10/Subcaves | Learned location of 1 exit from Materials 2701 | -10/Subcaves | Shifting Twisted Machinery released Scrap Shield 2702 | -10/Subcaves | Identified exit to Materials 2702 | -10/Subcaves | Discovered exit to Materials (range 3) 2705 | -10/Subcaves | Shifting Twisted Machinery released Riot Gun 2887 | -10/Subcaves | Shifting Twisted Machinery released Battle Cannon 2899 | -10/Subcaves | Shifting Twisted Machinery released Mak. Axe 2943 | -10/Subcaves | A swath of the cavern ceiling suddenly collapsed 3169 | -10/Subcaves | Shifting Twisted Machinery released Battle Rifle 3318 | -10/Subcaves | Identified exit to Recycling 3318 | -10/Subcaves | Discovered exit to Recycling (range 16) 3323 | -10/Subcaves | Lost 3 parts (1p1n1u) 3659 | -10/Subcaves | Visited Clippyterm 3674 | -10/Subcaves | Learned Research security intel 3674 | -10/Subcaves | Learned Factory garrison access intel 4196 | -10/Subcaves | Visited 4L-MR0's lab 4252 | -10/Subcaves | Found Cargo Legs 4253 | -10/Subcaves | Attached Cargo Legs, gained temporary slots: Utility x2 4384 | -10/Subcaves | A swath of the cavern ceiling suddenly collapsed 4683 | -10/Subcaves | Disturbed a concealed Subdweller 4683 | -10/Subcaves | Disturbed a concealed Subdweller 4690 | -10/Subcaves | Core integrity fell below 50% 4965 | -10/Subcaves | Ambushed by Subdwellers from Twisted Machinery 5065 | -10/Subcaves | Shifting Twisted Machinery released Sub. Machine Gun 5347 | -10/Subcaves | Discovered exit to Materials (range 3) 6485 | -10/Subcaves | Disturbed a concealed Subdweller 6491 | -10/Subcaves | Core integrity fell below 20% 6583 | -10/Subcaves | Destroyed by C9-MU2(R) with Subdweller Laser Last Messages --------------- 06187_ Searching scrap... 06187_ Found Riot Gun. 06187_ Found 39 Matter. 06392_ Extracted 4 energy. 06469_ Searching scrap... 06469_ Found Battle Cannon. 06469_ Found Flamer. 06469_ Found 49 Matter. 06470_ Searching scrap... 06470_ Found Sub. Shrapnel Launcher. 06470_ Found 47 Matter. 06474_ Searching scrap... 06474_ Found Battle Rifle. 06474_ Found Mak. Leg. 06474_ Found 36 Matter. 06485_ 8O-WKG(R) angrily emerges from the Twisted Machinery. 06490_ Mak. Sword follow-up attack on 8O-WKG(R). 06495_ 8O-WKG(R) destroyed. 06580_ Mak. Sword destroyed. Map ----- +----------------------------------------------------+ | | | | | | | | | | | | | ?????????????????????????????????????????????????? | | ?????????????????????????????????????????????????? | | ?????????????????????????????????????????????????? | | ?????????????????????????????????????????????????? | | ?????????????????????????????????????????????????? | | ?????????????????????????????????????????????????? | | ?????????????????????????????????????????????????? | | ?????????????????????????????????????????????????? | | ?????????????????????????????????????????????????? | | ???????????????????????????????????#######???????? | | ???????????????????????????????????#]%#=[#???????? | | ???????????????????????????????????#%|] %#???????? | | ???????????????????????????????????##"&###???????? | | ???????????????????????????????????### #????????? | | ????????????????######?????????????# # ###???????? | | ????????????????# ######??####### " ######### | | ????????????????# #### ## # ! ## # # | | ???????????????## RR &%* | | ??????????????## & ## # # | | ??????????????# #@ # ###### ########## | | ???????????# #" ##########????####????????? | | ???????????# #####?????????????????????????? | | ???????????# ???????????????????????????????? | | ??????????# ???????????????????????????????? | | ??????????# ????????????????????????????????? | | ????????? ????????????????????????????????? | | ??????? #?????????????????????????????????? | | ??????? #??????????????????????????????????? | | ??????? ???????????????????????????????????? | | ???????? ????????????????????????????????????? | | ???????? ?????????????????????????????????????? | | ?????????? ?????????????????????????????????????? | | ?????????????????????????????????????????????????? | | ?????????????????????????????????????#######???### | | ????????????????????????????????????########???### | | ????????????????????????????????????### #######" | | ???????????###############??????????## #######" | | ???????????###############??????????## #"###" | | ???????????## "#""""""*"##??????????## """"" | | ???????????## "X" "####????????### "#"#"" " | | ???????????#### ######????????### ""###"# | | ???????????#### + "##?????????#### "##"#" | | ??????????##"###########" ##?????????##### ###### | | ??????????##%###########" ##???????????### ##### | +----------------------------------------------------+ Best States ------------- Heat Dissipation 25 Energy Generation 14 Energy Capacity 250 Matter Stores 300 Matter Capacity 300 Sight Range 16 Robot Scan Range 14 Terrain Scan Density 10 Armor Coverage 150 Resistance: KI 35 Resistance: TH 35 Resistance: EX 35 Resistance: EM 35 Resistance: I 35 Resistance: S 35 Resistance: P 35 Evasion (%) 55 Targeting Accuracy 5 Recoil Reduction 2 Offensive Hacking 20 Item Schematics ----------------- None Robot Schematics ------------------ None Fabricated ------------ Nothing Repaired ---------- Nothing Studied --------- None Alien Tech Used ----------------- None Achievements -------------- None Challenges ------------ None Game ------ Seed MagneticTransmissionThruster Manual? 0 Play Time 00:27:08 Cumulative 257.3 hours Start 2026.01.07 @ 12:00:16 End 2026.01.07 @ 12:25:28 Sessions 1 Manual Loads 0 Difficulty Explorer Special Mode None Game No. 408 Rogue 0 Adventurer 0 Explorer 408 Win Type - Total 0 Types 0/0/0/0/0/0/0/0/0/0 Lore% 72 Gallery% 69 Achievement% 54 Wizard Run 0 Options --------- Layout 1 ASCII 0 Keyboard 0 Movement Mouse Keybinds 0 Fullscreen 1 Font 24/Smallcaps Map View 50x35 Zoom Use 0% Tactical HUD 1 Map Filters NONE Filters NONE Steam 1 RUN: 28435ce7-e855-45b9-b0d7-c90632aa2df8